fUST/lending_fUST_20251127
["ID","MTS","AMOUNT","RATE_DAILY","PERIOD"]
[394945257,1764180641373,-702.6,0.00028767,4]
[394945258,1764180641382,-500.0,0.00028767,4]
[394945259,1764180641391,-500.0,0.00028767,4]
[394945260,1764180641400,-500.0,0.00028767,2]
[394945261,1764180641410,-739.32,0.00028767,4]
[394945262,1764180641419,-500.0,0.00028767,4]
[394945263,1764180641428,-320.81939368,0.00028767,4]
[394945264,1764180641437,-647.57,0.00028767,4]
[394945265,1764180641447,-500.0,0.00028767,4]
[394945266,1764180641456,-500.0,0.00028767,4]
[394945267,1764180641465,-500.0,0.00028767,4]
[394945268,1764180641474,-598.63,0.00028767,4]
[394945269,1764180641483,-500.0,0.00028767,4]
[394945270,1764180641492,-500.0,0.00028767,4]
[394945271,1764180641502,-500.0,0.00028767,4]
[394945272,1764180641511,-1500.0,0.00028768,5]
[394945273,1764180641520,-186.0,0.0002881,7]
[394945274,1764180641529,-177.011243,0.00028881,30]
[394945275,1764180641538,-1000.0,0.00028903,3]
[394945276,1764180641547,-1800.0,0.00028904,7]
[394945277,1764180641557,-187.0,0.00028958,2]
[394945278,1764180641566,-186.0,0.0002897,2]
[394945279,1764180641575,-500.0,0.00028973,5]
[394945280,1764180641585,-10770.7008797,0.0002898,2]
[394945281,1764180641595,-4503.48476356,0.0002898,2]
[394945282,1764180641604,-100000.0,0.0002899,2]
[394945283,1764180641613,-186.0,0.00029007,2]
[394945284,1764180641622,-2000.0,0.00029016,5]
[394945285,1764180641632,-2000.0,0.00029016,5]
[394945286,1764180641641,-2000.0,0.00029016,5]
[394945287,1764180641650,-2000.0,0.00029016,5]
[394945288,1764180641659,-177.011243,0.00029025,30]
[394945289,1764180641668,-1000.0,0.00029029,3]
[394945290,1764180641677,-5385.35043985,0.00029031,2]
[394945291,1764180641687,-2251.74238178,0.00029031,2]
[394945292,1764180641696,-500.0,0.00029041,4]
[394945293,1764180641705,-293.10022656,0.00029041,4]
[394945294,1764180641714,-500.0,0.00029041,4]
[394945295,1764180641723,-500.0,0.00029041,4]
[394945296,1764180641732,-290.69576679,0.00029041,4]
[394945297,1764180641742,-500.0,0.00029041,2]
[394945298,1764180641751,-500.0,0.00029041,4]
[394945299,1764180641760,-500.0,0.00029041,4]
[394945300,1764180641769,-500.0,0.00029041,4]
[394945301,1764180641778,-1492.94,0.00029041,3]
[394945302,1764180641788,-500.0,0.00029041,4]
[394945303,1764180641797,-258.2283962,0.00029041,4]
[394945304,1764180641807,-184.92518902,0.00029041,4]
[394945305,1764180641816,-500.0,0.00029041,4]
[394945306,1764180641826,-377.37068532,0.00029041,4]
[394945307,1764180641836,-500.0,0.00029041,4]
[394945308,1764180641849,-500.0,0.00029041,4]
[394945309,1764180641858,-1661.86,0.00029041,4]
[394945310,1764180641867,-702.6,0.00029041,4]
[394945311,1764180641876,-500.0,0.00029041,4]
[394945312,1764180641885,-500.0,0.00029041,4]
[394945313,1764180641894,-500.0,0.00029041,2]
[394945314,1764180641904,-739.32,0.00029041,4]
[394945315,1764180641913,-500.0,0.00029041,4]
[394945316,1764180641922,-647.57,0.00029041,4]
[394945317,1764180641931,-500.0,0.00029041,4]
[394945318,1764180641940,-500.0,0.00029041,4]
[394945319,1764180641950,-500.0,0.00029041,4]
[394945320,1764180641959,-598.63,0.00029041,4]
[394945321,1764180641968,-500.0,0.00029041,4]
[394945322,1764180641976,-500.0,0.00029041,4]
[394945323,1764180641986,-500.0,0.00029041,4]
[394945324,1764180641996,-177.011243,0.00029071,2]
[394945325,1764180642006,-186.0,0.00029092,2]
[394945326,1764180642015,-595.6940495,0.00029164,30]
[394945327,1764180642024,-168.45,0.000292,14]
[394945328,1764180642035,-188.0,0.00029233,2]
[394945329,1764180642045,-1000.0,0.00029299,3]
[394945330,1764180642055,-3089.36,0.000293,3]
[394945331,1764180642065,-500.0,0.00029315,4]
[394945332,1764180642075,-500.0,0.00029315,2]
[394945333,1764180642085,-500.0,0.00029315,4]
[394945334,1764180642095,-500.0,0.00029315,4]
[394945335,1764180642104,-500.0,0.00029315,2]
[394945336,1764180642114,-500.0,0.00029315,4]
[394945337,1764180642123,-500.0,0.00029315,4]
[394945338,1764180642132,-500.0,0.00029315,4]
[394945339,1764180642140,-1492.94,0.00029315,3]
[394945340,1764180642149,-500.0,0.00029315,4]
[394945341,1764180642159,-500.0,0.00029315,4]
[394945342,1764180642168,-500.0,0.00029315,4]
[394945343,1764180642178,-500.0,0.00029315,4]
[394945344,1764180642188,-1661.86,0.00029315,4]
[394945345,1764180642197,-702.6,0.00029315,4]
[394945346,1764180642207,-500.0,0.00029315,4]
[394945347,1764180642216,-500.0,0.00029315,4]
[394945348,1764180642226,-500.0,0.00029315,2]
[394945349,1764180642236,-739.32,0.00029315,4]
[394945350,1764180642247,-500.0,0.00029315,4]
[394945351,1764180642256,-647.57,0.00029315,4]
[394945352,1764180642266,-494.43261381,0.00029315,4]
[394945353,1764180642275,-406.22957381,0.00029315,11]
[394945354,1764180642284,-500.0,0.00029315,4]
[394945355,1764180642293,-500.0,0.00029315,4]
[394945356,1764180642303,-500.0,0.00029315,11]
[394945357,1764180642314,-598.63,0.00029315,4]
[394945358,1764180642323,-500.0,0.00029315,4]
[394945359,1764180642332,-500.0,0.00029315,4]
[394945360,1764180642342,-500.0,0.00029315,4]
[394945361,1764180642354,-1351.37085115,0.00029316,5]
[394945362,1764180642364,-186.0,0.00029336,7]
[394945363,1764180642373,-1000.0,0.00029367,3]
[394945364,1764180642382,-353.4974844,0.000294,3]
[394945365,1764180642391,-177.011243,0.0002943,3]
[394945366,1764180642400,-13974.9873374,0.00029435,2]
[394945367,1764180642409,-500.0,0.00029452,2]
[394945368,1764180642418,-1000.0,0.00029521,5]
[394945369,1764180642427,-5385.35043985,0.00029554,2]
[394945370,1764180642435,-2251.74238178,0.00029554,2]
[394945371,1764180642444,-2368.8100117,0.00029564,5]
[394945372,1764180642453,-2500.0,0.00029564,5]
[394945373,1764180642462,-2500.0,0.00029564,5]
[394945374,1764180642471,-2500.0,0.00029564,5]
[394945375,1764180642481,-1000.0,0.00029588,2]
[394945376,1764180642490,-1000.0,0.00029588,3]
[394945377,1764180642500,-1000.0,0.00029588,3]
[394945378,1764180642510,-250.0,0.00029588,4]
[394945379,1764180642519,-250.0,0.00029588,4]
[394945380,1764180642528,-250.0,0.00029588,4]
[394945381,1764180642538,-250.0,0.00029588,4]
[394945382,1764180642547,-250.0,0.00029588,4]
[394945383,1764180642557,-181.08010149,0.00029588,4]
[394945384,1764180642566,-250.0,0.00029588,4]
[394945385,1764180642575,-187.78006525,0.00029588,4]
[394945386,1764180642584,-250.0,0.00029588,4]
[394945387,1764180642595,-194.72792766,0.00029588,4]
[394945388,1764180642604,-250.0,0.00029588,4]
[394945389,1764180642613,-269.23569803,0.00029588,4]
[394945390,1764180642622,-250.0,0.00029588,4]
[394945391,1764180642631,-250.0,0.00029588,4]
[394945392,1764180642641,-250.0,0.00029588,4]
[394945393,1764180642651,-257.55789939,0.00029588,4]
[394945394,1764180642661,-250.0,0.00029588,4]
[394945395,1764180642671,-250.0,0.00029588,4]
[394945396,1764180642681,-250.0,0.00029588,4]
[394945397,1764180642691,-378.84303548,0.00029588,4]
[394945398,1764180642700,-250.0,0.00029588,4]
[394945399,1764180642710,-3333.0,0.00029588,4]
[394945400,1764180642720,-2000.0,0.00029588,4]
[394945401,1764180642730,-2007.80848382,0.00029588,4]
[394945402,1764180642739,-500.0,0.00029589,2]
[394945403,1764180642749,-519.36975861,0.00029589,4]
[394945404,1764180642760,-495.11054145,0.00029589,4]
[394945405,1764180642770,-500.0,0.00029589,4]
[394945406,1764180642779,-500.0,0.00029589,2]
[394945407,1764180642789,-500.0,0.00029589,4]
[394945408,1764180642799,-500.0,0.00029589,4]
[394945409,1764180642808,-500.0,0.00029589,4]
[394945410,1764180642817,-1492.94,0.00029589,3]
[394945411,1764180642826,-500.0,0.00029589,4]
[394945412,1764180642837,-500.0,0.00029589,4]
[394945413,1764180642848,-500.0,0.00029589,4]
[394945414,1764180642859,-500.0,0.00029589,4]
[394945415,1764180642868,-1661.86,0.00029589,4]
[394945416,1764180642878,-702.6,0.00029589,4]
[394945417,1764180642888,-500.0,0.00029589,4]
[394945418,1764180642897,-500.0,0.00029589,4]
[394945419,1764180642907,-500.0,0.00029589,2]
[394945420,1764180642916,-739.32,0.00029589,4]
[394945421,1764180642926,-500.0,0.00029589,4]
[394945422,1764180642936,-647.57,0.00029589,4]
[394945423,1764180642947,-500.0,0.00029589,4]
[394945424,1764180642956,-500.0,0.00029589,4]
[394945425,1764180642965,-598.63,0.00029589,4]
[394945426,1764180642975,-500.0,0.00029589,4]
[394945427,1764180642985,-500.0,0.00029589,4]
[394945428,1764180642996,-187.0,0.00029659,7]
[394945429,1764180643007,-5385.35043985,0.0002969,2]
[394945430,1764180643016,-2251.74238178,0.0002969,2]
[394945431,1764180643028,-15446.8,0.000297,5]
[394945432,1764180643037,-500.0,0.00029726,2]
[394945433,1764180643047,-1800.0,0.00029726,7]
[394945434,1764180643056,-221.9622791,0.00029755,2]
[394945435,1764180643066,-5000.0,0.00029824,2]
[394945436,1764180643076,-500.0,0.00029863,2]
[394945437,1764180643086,-500.0,0.00029863,4]
[394945438,1764180643096,-500.0,0.00029863,2]
[394945439,1764180643105,-500.0,0.00029863,4]
[394945440,1764180643114,-500.0,0.00029863,4]
[394945441,1764180643124,-500.0,0.00029863,4]
[394945442,1764180643133,-1492.94,0.00029863,3]
[394945443,1764180643143,-500.0,0.00029863,4]
[394945444,1764180643153,-500.0,0.00029863,4]
[394945445,1764180643162,-500.0,0.00029863,4]
[394945446,1764180643172,-500.0,0.00029863,4]
[394945447,1764180643181,-1661.86,0.00029863,4]
[394945448,1764180643190,-702.6,0.00029863,4]
[394945449,1764180643199,-500.0,0.00029863,4]
[394945450,1764180643209,-500.0,0.00029863,4]
[394945451,1764180643218,-500.0,0.00029863,2]
[394945452,1764180643227,-739.32,0.00029863,4]
[394945453,1764180643236,-500.0,0.00029863,4]
[394945454,1764180643246,-647.57,0.00029863,4]
[394945455,1764180643256,-500.0,0.00029863,4]
[394945456,1764180643267,-500.0,0.00029863,4]
[394945457,1764180643276,-598.63,0.00029863,4]
[394945458,1764180643286,-500.0,0.00029863,4]
[394945459,1764180643295,-500.0,0.00029863,4]
[394945460,1764180643304,-2411.48292142,0.00029884,2]
[394945461,1764180643313,-4266.29294409,0.000299,2]
[394945462,1764180643322,-6767.24278976,0.000299,2]
[394945463,1764180643332,-5385.35043985,0.0002997,2]
[394945464,1764180643342,-2251.74238178,0.0002997,2]
[394945465,1764180643351,-150.0,0.00029973,5]
[394945466,1764180643360,-1038.400212,0.0002998,5]
[394945467,1764180643370,-37697.4530789,0.0002999,2]
[394945468,1764180643379,-15762.1966725,0.0002999,2]
[394945469,1764180643388,-500.0,0.0003,2]
[394945470,1764180643397,-544255.90630324,0.0003,2]
[394945471,1764180643519,-414.0,0.00016476,2]
[394945472,1764180643529,-414.0,0.00019476,2]
[394945473,1764180643539,-414.0,0.00022476,2]
[394945474,1764180643548,-368.35,0.00027935,3]
[394945475,1764180643558,-736.7,0.00029305,3]
[394945476,1764180643567,-500.0,0.00029589,4]
[394945477,1764180643577,-500.0,0.00029863,4]
[394945478,1764180643587,-1159.15189662,0.0003,2]
[394945499,1764180665625,1712.0,0.00014,10]
[394945500,1764181147061,-217.0,0.00011061,2]
[394945501,1764181147085,-300.0,0.00011062,2]
[394945502,1764181147109,-300.0,0.00011062,2]
[394945503,1764181147131,-300.0,0.00011062,2]
[394945504,1764181147153,-1200.0,0.00011062,2]
[394945505,1764181147177,-50000.0,0.00011062,2]
[394945506,1764181147199,-239.7678541,0.00011062,2]
[394945507,1764181147223,-500.0,0.00011062,2]
[394945508,1764181147246,-271.79077105,0.00011062,2]
[394945509,1764181147268,-500.0,0.00011062,2]
[394945510,1764181147290,-500.0,0.00011062,2]
[394945511,1764181147313,-500.0,0.00011062,2]
[394945512,1764181147337,-500.0,0.00011062,2]
[394945513,1764181147359,-500.0,0.00011062,2]
[394945514,1764181147381,-500.0,0.00011062,2]
[394945515,1764181147411,-500.0,0.00011062,2]
[394945516,1764181147434,-500.0,0.00011062,2]
[394945517,1764181147456,-500.0,0.00011062,2]
[394945518,1764181147479,-500.0,0.00011062,2]
[394945519,1764181147502,-500.0,0.00011062,2]
[394945520,1764181147530,-500.0,0.00011062,2]
[394945521,1764181147552,-500.0,0.00011062,2]
[394945522,1764181147577,-500.0,0.00011062,2]
[394945523,1764181147602,-579.14174287,0.00011062,2]
[394945524,1764181147626,-552.90418029,0.00011062,2]
[394945525,1764181147651,-500.0,0.00011062,2]
[394945526,1764181147679,-500.0,0.00011062,2]
[394945527,1764181147706,-500.0,0.00011062,2]
[394945528,1764181147732,-500.0,0.00011062,2]
[394945529,1764181147760,-500.0,0.00011062,2]
[394945530,1764181147785,-500.0,0.00011062,2]
[394945531,1764181147808,-500.0,0.00011062,2]
[394945532,1764181147836,-500.0,0.00011062,2]
[394945533,1764181147860,-500.0,0.00011062,2]
[394945534,1764181147884,-500.0,0.00011062,2]
[394945535,1764181147907,-500.0,0.00011062,2]
[394945536,1764181147935,-500.0,0.00011062,2]
[394945537,1764181147958,-500.0,0.00011062,2]
[394945538,1764181147981,-500.0,0.00011062,2]
[394945539,1764181148010,-500.0,0.00011062,2]
[394945540,1764181148035,-500.0,0.00011062,2]
[394945541,1764181148063,-500.0,0.00011062,2]
[394945542,1764181148092,-500.0,0.00011062,2]
[394945543,1764181148118,-500.0,0.00011062,2]
[394945544,1764181148148,-500.0,0.00011062,2]
[394945545,1764181148174,-500.0,0.00011062,2]
[394945546,1764181148199,-500.0,0.00011062,2]
[394945547,1764181148227,-500.0,0.00011062,2]
[394945548,1764181148253,-500.0,0.00011062,2]
[394945549,1764181148285,-500.0,0.00011062,2]
[394945550,1764181148310,-500.0,0.00011062,2]
[394945551,1764181148341,-500.0,0.00011062,2]
[394945552,1764181148366,-500.0,0.00011062,2]
[394945553,1764181148396,-500.0,0.00011062,2]
[394945554,1764181148421,-500.0,0.00011062,2]
[394945555,1764181148446,-500.0,0.00011062,2]
[394945556,1764181148472,-500.0,0.00011062,2]
[394945557,1764181148494,-500.0,0.00011062,2]
[394945558,1764181148519,-500.0,0.00011062,2]
[394945559,1764181148544,-500.0,0.00011062,2]
[394945560,1764181148575,-500.0,0.00011062,2]
[394945561,1764181148600,-500.0,0.00011062,2]
[394945562,1764181148625,-500.0,0.00011062,2]
[394945563,1764181148653,-500.0,0.00011062,2]
[394945564,1764181148677,-500.0,0.00011062,2]
[394945565,1764181148701,-500.0,0.00011062,2]
[394945566,1764181148723,-500.0,0.00011062,2]
[394945567,1764181148751,-500.0,0.00011062,2]
[394945568,1764181148775,-500.0,0.00011062,2]
[394945569,1764181148798,-584.63938829,0.00011062,2]
[394945570,1764181148829,-500.0,0.00011062,2]
[394945571,1764181148854,-500.0,0.00011062,2]
[394945572,1764181148878,-500.0,0.00011062,2]
[394945573,1764181148907,-500.0,0.00011062,2]
[394945574,1764181148931,-500.0,0.00011062,2]
[394945575,1764181148955,-500.0,0.00011062,2]
[394945576,1764181148984,-500.0,0.00011062,2]
[394945577,1764181149008,-500.0,0.00011062,2]
[394945578,1764181149033,-500.0,0.00011062,2]
[394945579,1764181149058,-500.0,0.00011062,2]
[394945580,1764181149083,-500.0,0.00011062,2]
[394945581,1764181149108,-500.0,0.00011062,2]
[394945582,1764181149132,-500.0,0.00011062,2]
[394945583,1764181149162,-187.25538708,0.00011062,2]
[394945584,1764181149189,-440.35572911,0.00011062,2]
[394945585,1764181149215,-500.0,0.00011062,2]
[394945586,1764181149248,-500.0,0.00011062,2]
[394945587,1764181149272,-500.0,0.00011062,2]
[394945588,1764181149309,-500.0,0.00011062,2]
[394945589,1764181149337,-500.0,0.00011062,2]
[394945590,1764181149360,-500.0,0.00011062,2]
[394945591,1764181149382,-500.0,0.00011062,2]
[394945592,1764181149405,-500.0,0.00011062,2]
[394945593,1764181149427,-500.0,0.00011062,2]
[394945594,1764181149450,-500.0,0.00011062,2]
[394945595,1764181149472,-500.0,0.00011062,2]
[394945596,1764181149494,-500.0,0.00011062,2]
[394945597,1764181149514,-500.0,0.00011062,2]
[394945598,1764181149535,-500.0,0.00011062,2]
[394945599,1764181149556,-500.0,0.00011062,2]
[394945600,1764181149579,-500.0,0.00011062,2]
[394945601,1764181149600,-500.0,0.00011062,2]
[394945602,1764181149622,-500.0,0.00011062,2]
[394945603,1764181149644,-500.0,0.00011062,2]
[394945604,1764181149665,-500.0,0.00011062,2]
[394945605,1764181149686,-500.0,0.00011062,2]
[394945606,1764181149708,-500.0,0.00011062,2]
[394945607,1764181149845,-500.0,0.00011062,2]
[394945608,1764181149871,-500.0,0.00011062,2]
[394945609,1764181149896,-500.0,0.00011062,2]
[394945610,1764181149918,-500.0,0.00011062,2]
[394945611,1764181149942,-500.0,0.00011062,2]
[394945612,1764181149965,-500.0,0.00011062,2]
[394945613,1764181149989,-500.0,0.00011062,2]
[394945614,1764181150012,-500.0,0.00011062,2]
[394945615,1764181150036,-500.0,0.00011062,2]
[394945616,1764181150058,-500.0,0.00011062,2]
[394945617,1764181150083,-500.0,0.00011062,2]
[394945618,1764181150108,-500.0,0.00011062,2]
[394945619,1764181150135,-500.0,0.00011062,2]
[394945620,1764181150159,-500.0,0.00011062,2]
[394945621,1764181150189,-500.0,0.00011062,2]
[394945622,1764181150211,-500.0,0.00011062,2]
[394945623,1764181150234,-500.0,0.00011062,2]
[394945624,1764181150258,-500.0,0.00011062,2]
[394945625,1764181150279,-500.0,0.00011062,2]
[394945626,1764181150300,-500.0,0.00011062,2]
[394945627,1764181150329,-500.0,0.00011062,2]
[394945628,1764181150352,-500.0,0.00011062,2]
[394945629,1764181150375,-500.0,0.00011062,2]
[394945630,1764181150399,-500.0,0.00011062,2]
[394945631,1764181150420,-500.0,0.00011062,2]
[394945632,1764181150441,-500.0,0.00011062,2]
[394945633,1764181150464,-500.0,0.00011062,2]
[394945634,1764181150486,-500.0,0.00011062,2]
[394945635,1764181150508,-500.0,0.00011062,2]
[394945636,1764181150531,-180.5037956,0.00011062,2]
[394945637,1764181150553,-500.0,0.00011062,2]
[394945638,1764181150576,-500.0,0.00011062,2]
[394945639,1764181150599,-500.0,0.00011062,2]
[394945640,1764181150623,-500.0,0.00011062,2]
[394945641,1764181150646,-297.63146145,0.00011062,2]
[394945642,1764181150669,-500.0,0.00011062,2]
[394945643,1764181150691,-500.0,0.00011062,2]
[394945644,1764181150719,-999.42321159,0.00011062,2]
[394945645,1764181150741,-500.0,0.00011062,2]
[394945646,1764181150770,-999.42321159,0.00011062,2]
[394945647,1764181150793,-500.0,0.00011062,2]
[394945648,1764181150820,-999.42321159,0.00011062,2]
[394945649,1764181150848,-999.42321159,0.00011062,2]
[394945650,1764181150874,-999.42321159,0.00011062,2]
[394945651,1764181150899,-999.42321159,0.00011062,2]
[394945652,1764181150923,-999.42321159,0.00011062,2]
[394945653,1764181150949,-999.42321159,0.00011062,2]
[394945654,1764181150973,-999.42321159,0.00011062,2]
[394945655,1764181150999,-999.42321159,0.00011062,2]
[394945656,1764181151026,-999.42321159,0.00011062,2]
[394945657,1764181151051,-999.42321159,0.00011062,2]
[394945658,1764181151079,-999.42321159,0.00011062,2]
[394945659,1764181151105,-999.42321159,0.00011062,2]
[394945660,1764181151129,-999.42321159,0.00011062,2]
[394945661,1764181151153,-999.42321159,0.00011062,2]
[394945662,1764181151180,-999.42321159,0.00011062,2]
[394945663,1764181151204,-999.42321159,0.00011062,2]
[394945664,1764181151228,-999.42321159,0.00011062,2]
[394945665,1764181151258,-999.42321159,0.00011062,2]
[394945666,1764181151283,-999.42321159,0.00011062,2]
[394945667,1764181151308,-999.42321159,0.00011062,2]
[394945668,1764181151332,-999.42321159,0.00011062,2]
[394945669,1764181151357,-999.42321159,0.00011062,2]
[394945670,1764181151381,-999.42321159,0.00011062,2]
[394945671,1764181151404,-999.42321159,0.00011062,2]
[394945672,1764181151428,-999.42321159,0.00011062,2]
[394945673,1764181151451,-999.42321159,0.00011062,2]
[394945674,1764181151475,-999.42321159,0.00011062,2]
[394945675,1764181151498,-999.42321159,0.00011062,2]
[394945676,1764181151523,-999.42321159,0.00011062,2]
[394945677,1764181151546,-999.42321159,0.00011062,2]
[394945678,1764181151569,-999.42321159,0.00011062,2]
[394945679,1764181151595,-999.42321159,0.00011062,2]
[394945680,1764181151625,-999.42321159,0.00011062,2]
[394945681,1764181151655,-999.42321159,0.00011062,2]
[394945682,1764181151682,-999.42321159,0.00011062,2]
[394945683,1764181151708,-999.42321159,0.00011062,2]
[394945684,1764181151735,-999.42321159,0.00011062,2]
[394945685,1764181151765,-999.42321159,0.00011062,2]
[394945686,1764181151792,-999.42321159,0.00011062,2]
[394945687,1764181151823,-999.42321159,0.00011062,2]
[394945688,1764181151850,-999.42321159,0.00011062,2]
[394945689,1764181151878,-999.42321159,0.00011062,2]
[394945690,1764181151908,-999.42321159,0.00011062,2]
[394945691,1764181151939,-999.42321159,0.00011062,2]
[394945692,1764181151967,-999.42321159,0.00011062,2]
[394945693,1764181151997,-999.42321159,0.00011062,2]
[394945694,1764181152027,-999.42321159,0.00011062,2]
[394945695,1764181152057,-999.42321159,0.00011062,2]
[394945696,1764181152088,-999.42321159,0.00011062,2]
[394945697,1764181152119,-999.42321159,0.00011062,2]
[394945698,1764181152156,-999.42321159,0.00011062,2]
[394945699,1764181152186,-500.0,0.00011062,2]
[394945700,1764181152211,-500.0,0.00011062,2]
[394945701,1764181152238,-500.0,0.00011062,2]
[394945702,1764181152264,-500.0,0.00011062,2]
[394945703,1764181152291,-500.0,0.00011062,2]
[394945704,1764181152319,-500.0,0.00011062,2]
[394945705,1764181152346,-500.0,0.00011062,2]
[394945706,1764181152370,-500.0,0.00011062,2]
[394945707,1764181152395,-500.0,0.00011062,2]
[394945708,1764181152420,-574.00719709,0.00011062,2]
[394945709,1764181152446,-500.0,0.00011062,2]
[394945710,1764181152468,-500.0,0.00011062,2]
[394945711,1764181152490,-500.0,0.00011062,2]
[394945712,1764181152512,-500.0,0.00011062,2]
[394945713,1764181152537,-500.0,0.00011062,2]
[394945714,1764181152565,-500.0,0.00011062,2]
[394945715,1764181152593,-500.0,0.00011062,2]
[394945716,1764181152622,-955.69844606,0.00011062,2]
[394945717,1764181152649,-955.69844606,0.00011062,2]
[394945718,1764181152677,-955.69844606,0.00011062,2]
[394945719,1764181152706,-955.69844606,0.00011062,2]
[394945720,1764181152733,-955.69844606,0.00011062,2]
[394945721,1764181152760,-955.69844606,0.00011062,2]
[394945722,1764181152787,-955.69844606,0.00011062,2]
[394945723,1764181152814,-955.69844606,0.00011062,2]
[394945724,1764181152840,-955.69844606,0.00011062,2]
[394945725,1764181152866,-955.69844606,0.00011062,2]
[394945726,1764181152892,-955.69844606,0.00011062,2]
[394945727,1764181152920,-955.69844606,0.00011062,2]
[394945728,1764181152947,-955.69844606,0.00011062,2]
[394945729,1764181152974,-955.69844606,0.00011062,2]
[394945730,1764181153001,-955.69844606,0.00011062,2]
[394945731,1764181153030,-955.69844606,0.00011062,2]
[394945732,1764181197998,363.98261601,0.00011172,2]
[394945733,1764181246109,2000.00000003,0.00011062,2]
[394945734,1764181246182,2000.00000003,0.00011062,2]
[394945735,1764181252824,500.0,0.00011061,2]
[394945736,1764181252855,167.83749787,0.00011061,2]
[394945737,1764181252984,500.0,0.00011061,2]
[394945738,1764181253227,500.0,0.00011061,2]
[394945739,1764181253276,500.0,0.00011061,2]
[394945740,1764181253313,290.25353973,0.00011061,2]
[394945741,1764181254127,500.0,0.00011061,2]
[394945742,1764181254161,500.0,0.00011061,2]
[394945743,1764181254200,500.0,0.00011061,2]
[394945744,1764181254235,228.10046448,0.00011061,2]
[394945745,1764181254279,500.0,0.00011061,2]
[394945746,1764181254312,500.0,0.00011061,2]
[394945747,1764181254347,500.0,0.00011061,2]
[394945748,1764181254381,500.0,0.00011061,2]
[394945749,1764181254411,500.0,0.00011061,2]
[394945750,1764181254462,500.0,0.00011061,2]
[394945751,1764181254521,500.0,0.00011061,2]
[394945752,1764181254551,320.25231664,0.00011061,2]
[394945753,1764181254591,500.0,0.00011061,2]
[394945754,1764181254627,500.0,0.00011061,2]
[394945755,1764181254662,500.0,0.00011061,2]
[394945756,1764181254691,500.0,0.00011061,2]
[394945757,1764181254732,500.0,0.00011061,2]
[394945758,1764181254766,500.0,0.00011061,2]
[394945759,1764181254804,500.0,0.00011061,2]
[394945760,1764181254837,345.47947509,0.00011061,2]
[394945761,1764181254898,500.0,0.00011061,2]
[394945762,1764181254939,500.0,0.00011061,2]
[394945763,1764181254975,500.0,0.00011061,2]
[394945764,1764181255010,500.0,0.00011061,2]
[394945765,1764181255044,500.0,0.00011061,2]
[394945766,1764181255078,500.0,0.00011061,2]
[394945767,1764181255116,543.80553355,0.00011061,2]
[394945768,1764181255154,500.0,0.00011061,2]
[394945769,1764181255193,500.0,0.00011061,2]
[394945770,1764181255243,500.0,0.00011061,2]
[394945771,1764181255286,500.0,0.00011061,2]
[394945772,1764181255337,500.0,0.00011061,2]
[394945773,1764181255533,500.0,0.00011061,2]
[394945774,1764181256928,216579.05604226,0.00010963,2]
[394945888,1764181833416,-300.0,9.899e-05,2]
[394945889,1764181833428,-231.0,9.899e-05,2]